[Event "HUN-chT Youth 2019"]
[Site "Budapest"]
[Date "2019.10.28"]
[Round "4.8"]
[White "Foldes, Marton Gabor"]
[Black "Lazsadi, Kerka Lilla"]
[Result "1/2-1/2"]
[ECO "C00"]
[WhiteElo "1755"]
[BlackElo "1561"]
[Annotator "NA RC"]
[PlyCount "63"]
[EventDate "2019.10.26"]
[EventType "team-tourn"]
[EventCountry "HUN"]
[SourceTitle "playchess.com"]
[Source "ChessBase"]
[SourceQuality "1"]
[TimeControl "5400+30"]

1. e4 {[%emt 0:00:23]} e6 {[%emt 0:00:00]} 2. b3 {[%emt 0:00:11]} d5 {[%emt 0:01:54]} 3. Bb2 {[%emt 0:00:14]} Nf6 {[%emt 0:01:18]} 4. exd5 {[%emt 0:01:00]} exd5 {[%emt 0:00:34]} 5. Qe2+ {[%emt 0:07:52]} Be6 {[%emt 0:04:03]} 6. Nc3 {[%emt 0:01:36]} Bc5 {[%emt 0:02:28]} 7. O-O-O {[%emt 0:04:21]} Nc6 {[%emt 0:04:05]} 8. Nf3 {[%emt 0:07:34]} Qe7 {[%emt 0:06:45]} 9. d4 {[%emt 0:20:39]} Ba3 {[%emt 0:09:05]} 10. h3 {[%emt 0:12:38]} O-O-O {[%emt 0:07:35]} 11. Ne5 {[%emt 0:08:04]} Bxb2+ {[%emt 0:10:47]} 12. Kxb2 {[%emt 0:00:19]} Bd7 {[%emt 0:00:37]} 13. Nxc6 {[%emt 0:04:58]} Qxe2 {[%emt 0:06:03]} 14. Nxa7+ {[%emt 0:00:11]} Kb8 {[%emt 0:00:30]} 15. Bxe2 {[%emt 0:00:12]} Kxa7 {[%emt 0:00:40]} 16. Bf3 {[%emt 0:00:46]} c6 {[%emt 0:02:10]} 17. Rhe1 {[%emt 0:05:32]} Rhe8 {[%emt 0:02:14]} 18. a3 {[%emt 0:09:47]} Bf5 {[%emt 0:07:14]} 19. g4 {[%emt 0:01:58]} Bg6 {[%emt 0:00:35]} 20. Bg2 {[%emt 0:00:58]} h6 {[%emt 0:02:59]} 21. Re5 {[%emt 0:03:09]} Nd7 {[%emt 0:02:29]} 22. Ree1 {[%emt 0:01:01]} Nf6 {[%emt 0:00:47]} 23. Re5 {[%emt 0:01:37]} Nd7 {[%emt 0:00:30]} 24. Ree1 {[%emt 0:00:13]} Nf6 {[%emt 0:00:19]} 25. a4 {[%emt 0:00:18]} Kb8 {[%emt 0:01:47]} 26. f3 {[%emt 0:02:11]} Kc7 {[%emt 0:01:41]} 27. Na2 {[%emt 0:02:30]} Nd7 {[%emt 0:02:34]} 28. Nb4 {[%emt 0:00:43]} Nf6 {[%emt 0:00:30]} 29. Kc3 {[%emt 0:00:20]} Nd7 {[%emt 0:02:15]} 30. Nd3 {[%emt 0:00:43]} Bxd3 {[%emt 0:00:56]} 31. Kxd3 {[%emt 0:00:09]} Nf8 {[%emt 0:00:35]} 32. Bf1 1/2-1/2

[Event "HUN-chT Youth 2019"]
[Site "Budapest"]
[Date "2019.10.28"]
[Round "4.9"]
[White "Monduk, Ferenc"]
[Black "Dibusz, Domonkos"]
[Result "1/2-1/2"]
[ECO "E11"]
[WhiteElo "1987"]
[BlackElo "2088"]
[Annotator "NA RC"]
[PlyCount "75"]
[EventDate "2019.10.26"]
[EventType "team-tourn"]
[EventCountry "HUN"]
[SourceTitle "playchess.com"]
[Source "ChessBase"]
[SourceQuality "1"]
[TimeControl "5400+30"]

{[%evp 8,61,27,23,21,32767,32767,21,41,26,25,24,50,0,-7,-7,0,0,0,0,12,32767,14,0,22,18,26,32767,32767,-4,18,32767,-10,32767,32767,32767,-7,32767,32767,32767,32767,-153,-126,32767,32767,32767,32767,-65,32767,32767,-91,32767,32767,-26,32767,-11]} 1. d4 {[%emt 0:00:00]} Nf6 {[%emt 0:00:00]} 2. c4 {[%emt 0:00:00]} e6 {[%emt 0:00:00]} 3. Nf3 {[%emt 0:00:00]} Bb4+ {[%emt 0:00:00]} 4. Bd2 {[%emt 0:00:00]} a5 {[%emt 0:00:00]} 5. a3 {[%emt 0:00:52]} Bxd2+ {[%emt 0:01:03]} 6. Nbxd2 {[%emt 0:00:09]} b6 {[%emt 0:01:48] E11: Bogo-Indian} (6... d6 7. e4 Nc6 8. b4 O-O 9. b5 Ne7 10. Qc2 e5 11. dxe5 dxe5 12. Rd1 Ng6 13. c5 Qe7 14. Bc4 Nd7 {0-1 (28) Repka,C (2473)-Miton,K (2612) Slovakia 2017}) 7. e4 {[%emt 0:00:58]} Bb7 {[%emt 0:01:02]} 8. Bd3 {[%emt 0:00:12]} d6 {[%emt 0:01:29]} 9. O-O $146 {[%emt 0:02:44]} ({Predecessor:} 9. Qe2 O-O 10. e5 dxe5 11. dxe5 Nfd7 12. O-O Nc5 13. Bc2 a4 14. Rad1 {1-0 (32) Joppien,A (2077)-Reimann,H (2004) Leipzig 2013}) 9... c5 {[%emt 0:16:22]} 10. dxc5 {[%emt 0:05:49]} bxc5 {[%emt 0:05:37]} 11. e5 {[%emt 0:08:04]} dxe5 {[%emt 0:01:40]} 12. Nxe5 {[%emt 0:00:15]} O-O {[%emt 0:00:59]} 13. Ndf3 {[%emt 0:05:33]} Nbd7 {[%emt 0:11:10]} 14. Qe2 {[%emt 0:05:17]} Qc7 {[%emt 0:04:49]} 15. Rad1 {[%emt 0:04:06]} Bxf3 {[%emt 0:12:28]} 16. Nxf3 {[%emt 0:01:31]} Rab8 {[%emt 0:00:33]} 17. Rd2 {[%emt 0:09:59]} Rfe8 {[%emt 0:01:39]} 18. Re1 {[%emt 0:09:39]} h6 {[%emt 0:04:25]} 19. Rc2 {[%emt 0:07:59]} Rbd8 {[%emt 0:04:59]} 20. h3 {[%emt 0:02:56]} Nh5 {[%emt 0:03:50]} 21. Qe3 {[%emt 0:08:55]} Nf4 {[%emt 0:02:17]} 22. Bf1 {[%emt 0:01:51]} e5 {[%emt 0:02:21]} 23. g3 {[%emt 0:04:02]} Ne6 {[%emt 0:00:57]} 24. Rce2 {[%emt 0:06:08]} Nd4 {[%emt 0:01:35]} 25. Rd2 {[%emt 0:01:14]} Nf6 {[%emt 0:03:05]} 26. Bg2 {[%emt 0:00:54]} Nf5 {[%emt 0:05:37]} 27. Qc3 {[%emt 0:02:57]} e4 {[%emt 0:01:12]} 28. Rxd8 {[%emt 0:01:25]} Rxd8 {[%emt 0:00:23]} 29. Qe5 {[%emt 0:00:20]} Qc8 {[%emt 0:02:16]} 30. Nh2 {[%emt 0:01:12]} Re8 {[%emt 0:00:51]} 31. Qc3 $11 {[%emt 0:00:17]} Qc7 {[%emt 0:01:49]} 32. Ng4 {[%emt 0:01:03]} Nxg4 {[%emt 0:01:09]} 33. hxg4 {[%emt 0:00:05]} Nd6 {[%emt 0:00:33]} 34. b4 {[%emt 0:00:53]} cxb4 {[%emt 0:02:41]} 35. axb4 {[%emt 0:00:05]} Qxc4 {[%emt 0:01:04]} 36. Qxc4 {[%emt 0:00:06]} Nxc4 {[%emt 0:00:06]} 37. bxa5 {[%emt 0:00:05]} Nxa5 {[%emt 0:00:52]} 38. Bxe4 {[%emt 0:00:14]} 1/2-1/2

[Event "HUN-chT Youth 2019"]
[Site "Budapest"]
[Date "2019.10.28"]
[Round "4.9"]
[White "Kovacs, Kristof"]
[Black "Csernyik, Mark"]
[Result "1/2-1/2"]
[ECO "B01"]
[WhiteElo "1547"]
[BlackElo "1749"]
[Annotator "NA RC"]
[PlyCount "68"]
[EventDate "2019.10.26"]
[EventType "team-tourn"]
[EventCountry "HUN"]
[SourceTitle "playchess.com"]
[Source "ChessBase"]
[SourceQuality "1"]
[TimeControl "5400+30"]

1. e4 {[%emt 0:00:00]} d5 {[%emt 0:00:00]} 2. exd5 Qxd5 {[%emt 0:00:00]} 3. Nc3 {[%emt 0:00:00]} Qd6 {[%emt 0:00:21]} 4. Nf3 {[%emt 0:00:25]} Nf6 {[%emt 0:00:16]} 5. d4 {[%emt 0:00:17]} a6 {[%emt 0:00:19]} 6. Bc4 {[%emt 0:01:13]} b5 {[%emt 0:00:15]} 7. Bd3 {[%emt 0:00:25]} Nbd7 {[%emt 0:00:13]} 8. O-O {[%emt 0:00:23]} Bb7 {[%emt 0:00:05]} 9. a3 {[%emt 0:03:47]} e6 {[%emt 0:00:19]} 10. b4 {[%emt 0:01:35]} Be7 {[%emt 0:01:13]} 11. Re1 {[%emt 0:02:25]} Nd5 {[%emt 0:02:54]} 12. Ne4 {[%emt 0:02:10]} Qb6 {[%emt 0:02:02]} 13. Bb2 {[%emt 0:02:26]} N7f6 {[%emt 0:02:34]} 14. Qd2 {[%emt 0:03:46]} O-O {[%emt 0:01:07]} 15. Nc5 {[%emt 0:03:04]} Bd6 {[%emt 0:06:04]} 16. Nxb7 {[%emt 0:02:23]} Qxb7 {[%emt 0:00:24]} 17. Ne5 {[%emt 0:01:55]} Rad8 {[%emt 0:05:09]} 18. Rad1 {[%emt 0:06:57]} Ne7 {[%emt 0:04:16]} 19. Qg5 {[%emt 0:01:27]} Rfe8 {[%emt 0:19:08]} 20. Re3 {[%emt 0:03:50]} Ng6 {[%emt 0:02:59]} 21. h4 {[%emt 0:01:20]} h6 {[%emt 0:02:56]} 22. Qg3 {[%emt 0:00:35]} Bxe5 {[%emt 0:00:45]} 23. dxe5 {[%emt 0:00:22]} Nd5 {[%emt 0:01:20]} 24. Rf3 {[%emt 0:00:28]} Nde7 {[%emt 0:00:49]} 25. h5 {[%emt 0:00:32]} Nf5 {[%emt 0:00:41]} 26. Qg4 {[%emt 0:01:55]} Nge7 {[%emt 0:03:12]} 27. Re1 {[%emt 0:00:53]} Qb6 {[%emt 0:08:11]} 28. Qf4 {[%emt 0:03:58]} c5 {[%emt 0:02:59]} 29. bxc5 {[%emt 0:00:52]} Qxc5 {[%emt 0:00:08]} 30. g4 {[%emt 0:00:39]} Nd5 {[%emt 0:00:58]} 31. Qe4 {[%emt 0:00:15]} Nfe7 {[%emt 0:04:15]} 32. Qh7+ {[%emt 0:00:59]} Kf8 {[%emt 0:00:06]} 33. Bg6 {[%emt 0:00:28]} Nxg6 {[%emt 0:02:56]} 34. Qxg6 {[%emt 0:00:31]} Rd7 {[%emt 0:00:53]} 1/2-1/2

[Event "HUN-chT Youth 2019"]
[Site "Budapest"]
[Date "2019.10.28"]
[Round "4.10"]
[White "Kovacs, Gabor Etele"]
[Black "Lengyel, Andrea"]
[Result "1-0"]
[ECO "B30"]
[WhiteElo "2053"]
[BlackElo "1872"]
[Annotator "NA"]
[PlyCount "81"]
[EventDate "2019.10.26"]
[EventType "team-tourn"]
[EventCountry "HUN"]
[SourceTitle "playchess.com"]
[Source "ChessBase"]
[SourceQuality "1"]
[TimeControl "5400+30"]

1. e4 {[%emt 0:00:00]} c5 {[%emt 0:00:00]} 2. Nf3 {[%emt 0:00:00]} Nc6 {[%emt 0:00:00]} 3. Bb5 {[%emt 0:00:00]} e6 {[%emt 0:00:53]} 4. Bxc6 {[%emt 0:02:35]} bxc6 {[%emt 0:00:11]} 5. b3 {[%emt 0:00:10]} d5 {[%emt 0:01:46]} (5... Ne7 6. Bb2 Ng6 7. h4 h5 8. d3 f6 9. e5 d5 10. exd6 Bxd6 11. Nfd2 e5 12. Nc4 Be7 13. Nc3 Be6 {0-1 (39) Adams,M (2745)-Nakamura,H (2775) London 2014}) 6. d3 {[%emt 0:01:43] B30: Sicilian: 2...Nc6 3 Bb5, lines without ...g6} c4 $146 {[%emt 0:09:31]} ({Predecessor:} 6... dxe4 7. dxe4 Qxd1+ 8. Kxd1 c4 9. Ne5 Nf6 10. f3 cxb3 11. axb3 Bb7 12. Be3 Nd7 13. Nc4 {1-0 (48) Naiditsch,A (2652)-Sveshnikov,E (2504) Liepaja 2007}) 7. dxc4 {[%emt 0:07:59]} dxc4 {[%emt 0:03:33]} (7... Nf6 $14) 8. Qxd8+ {[%emt 0:00:39]} ({Don't play} 8. bxc4 $6 Qxd1+ 9. Kxd1 Nf6 $14) 8... Kxd8 {[%emt 0:00:01]} 9. Ne5 {[%emt 0:00:18]} cxb3 {[%emt 0:02:31]} 10. Nxf7+ {[%emt 0:12:44] Double Attack} Ke8 {[%emt 0:00:07]} 11. Nxh8 {[%emt 0:00:12]} bxc2 {[%emt 0:00:19]} 12. Nc3 {[%emt 0:01:46]} Ba6 $1 $11 {[%emt 0:09:21] and Black stays safe.} 13. Bg5 {[%emt 0:09:41]} Ba3 {[%emt 0:02:18]} (13... Nf6 {was worth a try.} 14. Kd2 Rd8+ 15. Kxc2 Bd3+ 16. Kd2 Bb4) 14. Bc1 $2 {[%emt 0:15:19]} (14. Kd2 $18) 14... Bb4 $2 {[%emt 0:02:41]} 15. Bb2 {[%emt 0:00:35]} (15. Kd2 $16) 15... Rd8 {[%emt 0:07:52]} 16. Rc1 {[%emt 0:15:38]} Bd3 {[%emt 0:02:33]} 17. f3 {[%emt 0:08:57]} Nf6 {[%emt 0:11:14]} 18. Kf2 {[%emt 0:11:38]} Bc5+ {[%emt 0:02:34]} 19. Kg3 {[%emt 0:00:01]} Be3 {[%emt 0:01:12]} 20. h4 {[%emt 0:04:06]} Rb8 {[%emt 0:15:32]} 21. Ba3 $1 {[%emt 0:00:32]} Bd2 {[%emt 0:00:06]} (21... Nh5+ $11 22. Kh3 Nf4+ 23. Kh2 Bd2) 22. Na4 {[%emt 0:01:29]} Bxc1 {[%emt 0:00:14]} 23. Rxc1 {[%emt 0:00:29]} Rb1 {[%emt 0:00:35]} 24. Nc5 {[%emt 0:00:24]} Rxc1 {[%emt 0:00:18]} 25. Bxc1 {[%emt 0:00:01]} Bc4 {[%emt 0:00:02]} 26. a3 {[%emt 0:04:26]} Kf8 {[%emt 0:00:39]} 27. Nb7 {[%emt 0:00:24]} Ne8 {[%emt 0:00:11]} 28. Nd8 {[%emt 0:00:33]} Nd6 {[%emt 0:03:42]} 29. Kf4 $16 {[%emt 0:01:14]} Nb5 {[%emt 0:01:35]} 30. Nxc6 {[%emt 0:00:33]} Kg8 {[%emt 0:01:43]} 31. Nf7 {[%emt 0:00:11]} Bf1 {[%emt 0:08:27]} 32. Nfe5 {[%emt 0:00:05]} Nc3 {[%emt 0:03:14]} 33. Ke3 {[%emt 0:00:01]} a6 {[%emt 0:04:21]} 34. Kd2 {[%emt 0:00:15]} Ne2 {[%emt 0:02:01]} 35. Kxc2 {[%emt 0:00:16]} Nxc1 {[%emt 0:01:27]} 36. Kxc1 {[%emt 0:00:01]} Bxg2 {[%emt 0:00:02]} 37. Nd8 {[%emt 0:00:37]} Kf8 {[%emt 0:01:37]} 38. Nxe6+ {[%emt 0:00:08]} Ke7 {[%emt 0:00:04]} 39. Nf4 {[%emt 0:00:30]} Bh1 {[%emt 0:00:43]} 40. Kd2 {[%emt 0:01:12]} Kf6 {[%emt 0:01:33]} 41. Ng4+ {[%emt 0:00:18]} 1-0

[Event "HUN-chT Youth 2019"]
[Site "Budapest"]
[Date "2019.10.28"]
[Round "4.10"]
[White "Karacsonyi, Bank"]
[Black "Szabo, Akos"]
[Result "1-0"]
[ECO "C58"]
[WhiteElo "1513"]
[BlackElo "1418"]
[Annotator "NA RC"]
[PlyCount "55"]
[EventDate "2019.10.26"]
[EventType "team-tourn"]
[EventCountry "HUN"]
[SourceTitle "playchess.com"]
[Source "ChessBase"]
[SourceQuality "1"]
[TimeControl "5400+30"]

1. e4 {[%emt 0:00:00]} e5 {[%emt 0:00:00]} 2. Nf3 {[%emt 0:00:00]} Nc6 {[%emt 0:00:00]} 3. Bc4 {[%emt 0:00:31]} Nf6 {[%emt 0:00:04]} 4. Ng5 {[%emt 0:00:18]} d5 {[%emt 0:00:32]} 5. exd5 {[%emt 0:00:41]} Na5 {[%emt 0:01:23]} 6. Be2 {[%emt 0:00:57]} Nxd5 {[%emt 0:00:42]} 7. d3 {[%emt 0:00:44]} h6 {[%emt 0:01:18]} 8. Ne4 {[%emt 0:00:54]} Nc6 {[%emt 0:00:47]} 9. O-O {[%emt 0:01:48]} g6 {[%emt 0:01:30]} 10. c4 {[%emt 0:01:28]} Nf6 {[%emt 0:00:26]} 11. Nbc3 {[%emt 0:01:58]} Nd4 {[%emt 0:01:11]} 12. Be3 {[%emt 0:04:21]} Nxe2+ {[%emt 0:01:32]} 13. Qxe2 {[%emt 0:01:27]} Nxe4 {[%emt 0:01:05]} 14. dxe4 {[%emt 0:01:45]} c6 {[%emt 0:03:03]} 15. f4 {[%emt 0:04:33]} exf4 {[%emt 0:02:34]} 16. Bxf4 {[%emt 0:01:54]} Bg7 {[%emt 0:02:16]} 17. Rad1 {[%emt 0:02:03]} Qb6+ {[%emt 0:00:59]} 18. Be3 {[%emt 0:01:59]} Qc7 {[%emt 0:00:22]} 19. Bc5 {[%emt 0:01:25]} Be6 {[%emt 0:03:01]} 20. Bd6 {[%emt 0:05:07]} Qb6+ {[%emt 0:02:06]} 21. c5 {[%emt 0:01:05]} Qa5 {[%emt 0:00:14]} 22. Nd5 {[%emt 0:02:56]} cxd5 {[%emt 0:02:53]} 23. exd5 {[%emt 0:00:14]} Qxa2 {[%emt 0:06:54]} 24. Qb5+ {[%emt 0:02:28]} Bd7 {[%emt 0:00:40]} 25. Rfe1+ {[%emt 0:00:10]} Kd8 {[%emt 0:00:10]} 26. Qxb7 {[%emt 0:00:34]} Rc8 {[%emt 0:00:48]} 27. c6 {[%emt 0:00:26]} Qa5 {[%emt 0:00:11]} 28. Qxd7# {[%emt 0:00:07]} 1-0

[Event "HUN-chT Youth 2019"]
[Site "Budapest"]
[Date "2019.10.28"]
[Round "4.11"]
[White "Szabo, Balazs"]
[Black "Giang, Tran Nam"]
[Result "0-1"]
[ECO "D03"]
[WhiteElo "2210"]
[BlackElo "2028"]
[Annotator "NA"]
[PlyCount "132"]
[EventDate "2019.10.26"]
[EventType "team-tourn"]
[EventCountry "HUN"]
[SourceTitle "playchess.com"]
[Source "ChessBase"]
[SourceQuality "1"]
[TimeControl "5400+30"]

1. d4 {[%emt 0:00:00]} d5 {[%emt 0:00:00]} 2. Nf3 {[%emt 0:00:47]} Nf6 {[%emt 0:00:00]} 3. Bg5 {[%emt 0:00:52]} Ne4 {[%emt 0:01:39]} 4. Bh4 {[%emt 0:01:37]} g6 {[%emt 0:03:37]} 5. e3 {[%emt 0:01:03]} Bg7 {[%emt 0:00:54]} 6. Be2 {[%emt 0:01:52]} O-O {[%emt 0:01:53]} 7. O-O {[%emt 0:00:20]} c5 {[%emt 0:00:45] D03: 1 d4 d5 2 Nf3 Nf6 3 Bg5, including Torre Attack with early ...d5} 8. c3 {[%emt 0:04:13]} (8. Nbd2 Nc6 9. c3 cxd4 10. exd4 h6 11. Ne1 Nd6 12. Bg3 Nf5 13. Bf4 e5 14. Bxe5 Nxe5 15. dxe5 Bxe5 16. Nef3 Bg7 17. Nb3 {½-½ (35) Karthikeyan,P (2502)-Kiran,M (2160) Mumbai 2017}) 8... Nc6 {[%emt 0:04:14]} 9. Nfd2 {[%emt 0:05:04]} Nxd2 {[%emt 0:03:50]} 10. Nxd2 {[%emt 0:01:15]} Qb6 $146 {[%emt 0:00:20]} ({Predecessor:} 10... Qd6 11. Bf3 cxd4 12. exd4 e5 13. Bg3 Qd8 14. dxe5 Nxe5 15. Nb3 Nxf3+ 16. Qxf3 h5 17. h3 {½-½ (55) Kovacevic,M (1802)-Cabarkapa,N (2314) Vrnjacka Banja 2012}) 11. Qc1 {[%emt 0:01:24]} Bf5 {[%emt 0:02:26]} 12. dxc5 {[%emt 0:05:47]} Qxc5 {[%emt 0:02:06]} 13. Nb3 {[%emt 0:00:37]} Qb6 {[%emt 0:01:06]} 14. Nd4 {[%emt 0:02:22]} e5 $2 {[%emt 0:02:22]} (14... Nxd4 $11 15. exd4 e5) 15. Nxf5 {[%emt 0:01:57]} gxf5 {[%emt 0:00:14]} 16. Bd3 {[%emt 0:01:07]} e4 {[%emt 0:00:17]} 17. Bc2 {[%emt 0:02:07]} Ne5 {[%emt 0:06:48]} 18. Rd1 {[%emt 0:03:29]} Ng6 {[%emt 0:02:32]} 19. Bg3 {[%emt 0:02:06]} Rfd8 {[%emt 0:01:06]} 20. Bb3 {[%emt 0:01:17]} Qc5 {[%emt 0:04:42]} 21. h3 {[%emt 0:04:24]} (21. Rd2 $16) 21... Rd7 {[%emt 0:04:11]} 22. Qd2 {[%emt 0:05:10]} Rad8 {[%emt 0:00:48]} 23. Qe2 {[%emt 0:02:39]} Qc6 {[%emt 0:05:11]} 24. Rd2 {[%emt 0:07:20]} b5 {[%emt 0:08:52]} 25. a3 {[%emt 0:03:34]} a5 {[%emt 0:03:36]} 26. Rad1 {[%emt 0:01:19]} ({White should play} 26. a4 $16) 26... b4 {[%emt 0:03:28]} 27. axb4 {[%emt 0:04:21]} axb4 {[%emt 0:00:34]} 28. cxb4 {[%emt 0:03:44]} d4 {[%emt 0:03:10]} 29. exd4 {[%emt 0:01:28]} f4 {[%emt 0:00:29]} 30. d5 {[%emt 0:07:41]} Qb6 {[%emt 0:03:15]} 31. Bh2 {[%emt 0:02:50]} Qxb4 {[%emt 0:02:19]} 32. Bc2 {[%emt 0:04:00]} (32. Bc4 $16) 32... Re7 {[%emt 0:03:45]} (32... f5 $11) 33. Kh1 {[%emt 0:04:19]} (33. Qg4 $16) 33... f5 {[%emt 0:06:51]} (33... Qd6 $1 $14) 34. d6 {[%emt 0:04:05]} Red7 {[%emt 0:01:48]} 35. Rd5 {[%emt 0:02:05]} Rxd6 {[%emt 0:04:12]} 36. Rxd6 {[%emt 0:00:45]} Rxd6 {[%emt 0:00:40]} 37. Rxd6 $14 {[%emt 0:01:02]} Qxd6 {[%emt 0:00:35]} 38. Qc4+ {[%emt 0:00:26]} Kh8 {[%emt 0:00:30]} 39. Qc8+ {[%emt 0:00:48]} Qf8 {[%emt 0:00:41]} 40. Qxf8+ {[%emt 0:00:42]} Bxf8 {[%emt 0:00:35]} 41. Kg1 {[%emt 0:00:37]} Kg7 {[%emt 0:00:07]} 42. Kf1 {[%emt 0:00:37]} Kf6 {[%emt 0:00:13]} 43. Ke2 {[%emt 0:00:46]} Ke5 {[%emt 0:00:24]} 44. f3 {[%emt 0:05:54]} Nh4 {[%emt 0:02:15]} 45. fxe4 {[%emt 0:01:06]} fxe4 {[%emt 0:00:28]} 46. g3 {[%emt 0:00:27]} f3+ {[%emt 0:00:46]} 47. Kf1 {[%emt 0:00:07]} Ng6 {[%emt 0:03:20]} 48. Bg1 {[%emt 0:00:38]} Bd6 {[%emt 0:01:15]} 49. Be3 {[%emt 0:00:14]} Bb4 {[%emt 0:03:04]} 50. Bb3 {[%emt 0:00:40]} Ne7 {[%emt 0:00:34]} 51. Kf2 {[%emt 0:00:39]} Nf5 {[%emt 0:01:01]} 52. Bb6 {[%emt 0:00:55]} Nd4 {[%emt 0:01:52]} 53. Bc4 {[%emt 0:00:29]} Bd2 {[%emt 0:01:11]} 54. Bxd4+ {[%emt 0:00:22]} Kxd4 {[%emt 0:00:07]} 55. Bf1 {[%emt 0:00:11]} Be3+ {[%emt 0:00:10]} 56. Ke1 {[%emt 0:00:11]} Bg1 {[%emt 0:00:06]} 57. b4 {[%emt 0:00:12]} e3 {[%emt 0:01:22]} 58. b5 {[%emt 0:00:53]} Bf2+ {[%emt 0:00:29]} 59. Kd1 {[%emt 0:00:18]} Bxg3 {[%emt 0:00:09]} 60. b6 {[%emt 0:00:11]} Kc5 {[%emt 0:01:00]} 61. b7 {[%emt 0:00:20]} Kb6 {[%emt 0:00:27]} 62. b8=Q+ Bxb8 {[%emt 0:00:00]} 63. h4 {[%emt 0:00:34]} h5 {[%emt 0:00:00]} 64. Bd3 {[%emt 0:00:16]} Bg3 {[%emt 0:00:08]} 65. Bf1 {[%emt 0:00:59]} Bxh4 {[%emt 0:00:11]} 66. Bh3 {[%emt 0:00:29]} e2+ {[%emt 0:00:06]} 0-1

[Event "HUN-chT Youth 2019"]
[Site "Budapest"]
[Date "2019.10.28"]
[Round "4.11"]
[White "Lazsadi, Blanka Anna"]
[Black "Karacsonyi, Luca"]
[Result "0-1"]
[ECO "B76"]
[WhiteElo "1142"]
[BlackElo "1556"]
[Annotator "NA RC"]
[PlyCount "58"]
[EventDate "2019.10.26"]
[EventType "team-tourn"]
[EventCountry "HUN"]
[SourceTitle "playchess.com"]
[Source "ChessBase"]
[SourceQuality "1"]
[TimeControl "5400+30"]

1. e4 {[%emt 0:00:00]} c5 {[%emt 0:00:00]} 2. Nf3 {[%emt 0:00:00]} d6 {[%emt 0:00:00]} 3. d4 {[%emt 0:00:40]} cxd4 {[%emt 0:00:00]} 4. Nxd4 {[%emt 0:00:31]} Nf6 {[%emt 0:00:00]} 5. Nc3 {[%emt 0:01:11]} g6 {[%emt 0:00:00]} 6. Be3 {[%emt 0:00:44]} Bg7 {[%emt 0:00:00]} 7. f3 {[%emt 0:00:40]} O-O {[%emt 0:00:05]} 8. Qd2 {[%emt 0:01:09]} Nc6 {[%emt 0:00:06]} 9. O-O-O {[%emt 0:00:35]} Nxd4 {[%emt 0:03:40]} 10. Bxd4 {[%emt 0:00:54]} b5 {[%emt 0:00:14]} 11. Bxb5 {[%emt 0:03:53]} Be6 {[%emt 0:02:27]} 12. Kb1 {[%emt 0:28:04]} Qa5 {[%emt 0:03:14]} 13. a3 {[%emt 0:07:21]} Rab8 {[%emt 0:04:12]} 14. Qd3 {[%emt 0:04:26]} a6 {[%emt 0:03:56]} 15. Ba4 {[%emt 0:06:12]} Rfc8 {[%emt 0:07:13]} 16. g4 {[%emt 0:01:58]} Rc4 {[%emt 0:06:20]} 17. Bb3 {[%emt 0:07:42]} Rxd4 {[%emt 0:08:27]} 18. Qxd4 {[%emt 0:07:18]} Bxb3 {[%emt 0:00:17]} 19. Qa7 {[%emt 0:01:06]} Nd7 {[%emt 0:06:09]} 20. Qxd7 {[%emt 0:02:16]} Be6 {[%emt 0:03:02]} 21. Qa4 {[%emt 0:01:07]} Qxc3 {[%emt 0:03:14]} 22. Qe8+ {[%emt 0:00:39]} Rxe8 {[%emt 0:00:51]} 23. bxc3 {[%emt 0:00:10]} Rb8+ {[%emt 0:00:28]} 24. Kc1 {[%emt 0:00:14]} Bxc3 {[%emt 0:00:11]} 25. Rd3 {[%emt 0:00:29]} Bb2+ {[%emt 0:00:25]} 26. Kd2 {[%emt 0:00:23]} Bc4 {[%emt 0:00:52]} 27. Re3 {[%emt 0:03:58]} Be5 {[%emt 0:00:49]} 28. Ke1 {[%emt 0:03:05]} Rb1+ {[%emt 0:00:13]} 29. Kf2 {[%emt 0:00:33]} Rxh1 {[%emt 0:00:03]} 0-1

[Event "HUN-chT Youth 2019"]
[Site "Budapest"]
[Date "2019.10.28"]
[Round "4.13"]
[White "Thierry, Edvard"]
[Black "Megyeri, Martin"]
[Result "0-1"]
[ECO "B33"]
[WhiteElo "1507"]
[BlackElo "1611"]
[Annotator "NA RC"]
[PlyCount "66"]
[EventDate "2019.10.26"]
[EventType "team-tourn"]
[EventCountry "HUN"]
[SourceTitle "playchess.com"]
[Source "ChessBase"]
[SourceQuality "1"]
[TimeControl "5400+30"]

1. e4 {[%emt 0:00:00]} c5 {[%emt 0:00:00]} 2. Nf3 {[%emt 0:00:00]} Nc6 {[%emt 0:00:00]} 3. d4 {[%emt 0:00:00]} cxd4 {[%emt 0:00:00]} 4. Nxd4 {[%emt 0:00:00]} Nf6 {[%emt 0:00:06]} 5. Nc3 {[%emt 0:00:00]} e5 {[%emt 0:00:13]} 6. Ndb5 {[%emt 0:00:14]} d6 {[%emt 0:00:07]} 7. Bg5 {[%emt 0:00:46]} a6 {[%emt 0:00:16]} 8. Na3 {[%emt 0:00:41]} b5 {[%emt 0:00:17]} 9. Nd5 {[%emt 0:01:16]} Be7 {[%emt 0:00:30]} 10. Nxe7 {[%emt 0:05:19]} Qxe7 {[%emt 0:01:14]} 11. f3 {[%emt 0:03:50]} O-O {[%emt 0:01:03]} 12. c3 {[%emt 0:01:48]} Rd8 {[%emt 0:02:54]} 13. Bd3 {[%emt 0:04:12]} Be6 {[%emt 0:03:17]} 14. Nc2 {[%emt 0:03:40]} d5 {[%emt 0:02:52]} 15. exd5 {[%emt 0:00:26]} Bxd5 {[%emt 0:01:22]} 16. Ne3 {[%emt 0:00:32]} Bc4 {[%emt 0:01:28]} 17. Nxc4 {[%emt 0:02:04]} bxc4 {[%emt 0:00:13]} 18. Qa4 {[%emt 0:00:02]} cxd3 {[%emt 0:11:27]} 19. Qxc6 {[%emt 0:00:10]} Rab8 {[%emt 0:03:19]} 20. b3 {[%emt 0:05:32]} Rbc8 {[%emt 0:03:38]} 21. Qxa6 {[%emt 0:02:03]} Rxc3 {[%emt 0:00:35]} 22. Bd2 {[%emt 0:01:46]} Rc2 {[%emt 0:02:02]} 23. Rc1 {[%emt 0:00:48]} Qc5 {[%emt 0:02:03]} 24. Rxc2 {[%emt 0:01:39]} Qxc2 {[%emt 0:01:28]} 25. Qa5 {[%emt 0:00:59]} Re8 {[%emt 0:03:04]} 26. Kf2 {[%emt 0:02:53]} Qb2 {[%emt 0:04:51]} 27. Re1 {[%emt 0:02:36]} h6 {[%emt 0:12:01]} 28. h3 {[%emt 0:04:27]} e4 {[%emt 0:12:25]} 29. fxe4 {[%emt 0:03:00]} Qd4+ {[%emt 0:12:38]} 30. Kf3 {[%emt 0:04:05]} Nxe4 {[%emt 0:05:51]} 31. h4 {[%emt 0:01:25]} Qf2+ {[%emt 0:01:32]} 32. Kg4 {[%emt 0:00:16]} Qg3+ {[%emt 0:00:56]} 33. Kh5 {[%emt 0:00:44]} Qg6# 0-1